Cogmind - Beta 16 @@@ ROGUE MODE // 2026.02.02 @ 19:13:19 Player: Johnny5001 Result: Destroyed by G-67 Veteran with Plasma Rifle Performance ------------- Evolutions (7) 3500 Regions Visited (25) 5000 Robots Destroyed (369) 1845 Value Destroyed (13157) 13157 Prototype IDs (38) 760 Alien Tech Used (0) 0 Bonus (8324) 8324 TOTAL SCORE: 32586 Bonus ------- High Alert Combat Kills 1010 Follower Combat Kills 1508 Entered Garrisons 200 Registered with UFD 300 Met Optimus in HQ 500 Met Zhirov 300 Met Warlord at Base 500 MAIN.C Attacked Warlord 500 Warlord Defense Kills 736 Built Enhanced Grunts 300 A7 Reached Mainframe 300 Met R17 at Cetus 500 Read Decrypted Archives 300 Met R17 at Research 2000 Friendly Fire -630 Cogmind --------- Core Integrity 0/1300 Matter 56/300 Energy 52/100 System Corruption 6% Temperature Cool (2) Movement Flying (40) Location -3/Armory Parts ------- > --- POWER (2) -------- (None) > --- PROPULSION (5) --- Xenon Bombardment Thruster > --- UTILITY (10) ----- Surveybot 17 Chip > --- WEAPON (4) ------- (None) > --- INVENTORY (5) ---- Sensor Drone Bay (15/20) Vortex Catalyst Activator (7) Force Lance Peak State ------------ > --- POWER ------------ Vortex Chain Reactor > --- PROPULSION ------- Biometal Leg Biometal Leg Enhanced Biometal Leg Enhanced Biometal Leg Enhanced Biometal Leg > --- UTILITY ---------- Large Storage Unit Advanced Sensor Array Advanced Signal Interpreter Surveybot 17 Chip Experimental Targeting Computer Improved Kinecellerator Improved Hacking Suite Ghost Barrier > --- WEAPON ----------- KE Penetrator Hypervelocity Railgun Hypervelocity Railgun Helical Railgun > --- INVENTORY -------- Improved Quantum Reactor Thunder Leg High-capacity Matter Pod Terrain Scanner Improved Weapon Cycler Improved Medium Armor Plating Improved Medium Armor Plating Makeshift System Shield Sensor Drone Bay KE Penetrator Guided EMP Blaster Vortex Catalyst Activator Chainsword [Rating: 146] Favorites ----------- Power Improved Deuterium Engine Engine Improved Deuterium Engine Power Core Fission Core Reactor Light Antimatter Reactor Propulsion Aluminum Leg Leg Aluminum Leg Wheel Armored Huge Wheel Flight Unit Q-thruster Utility Large Storage Unit Device Improved Weapon Cycler Storage Large Storage Unit Processor Advanced Signal Interpreter Hackware Hacking Suite Protection Improved Medium Armor Plating Weapon KE Penetrator Energy Gun Spread Laser Energy Cannon Ion Cannon Ballistic Gun KE Penetrator Ballistic Cannon Heavy Flak Cannon Launcher Guided EMP Blaster Slashing Weapon Chainsword Piercing Weapon Force Lance Special Melee Weapon Improved Datajack Build | -11 -10 -10 -9 -9 -9 -8 -8 -8 -8 -7 -7 -7 -7 -5 -5 -5 -5 -4 -4 -4 -4 -4 -4 -3 -3 ------- Run | Yrd Mat Min Mat Min Exi Min Mat Gar Mat Fac Sto Rec Scr Fac Upp Upp War Pro Fac Ext Cet Arc Hub Res Arm Slots Evolved 14 | . . . 2 . . . 2 . . 2 . . . 4 . . . . 2 . . . . 2 . Power 1 | . . . . . . . . . . . . . . . . . . . 1 . . . . . . Propulsion 3 | . . . 1 . . . 1 . . . . . . 1 . . . . . . . . . . . Utility 8 | . . . . . . . 1 . . 2 . . . 2 . . . . 1 . . . . 2 . Weapon 2 | . . . 1 . . . . . . . . . . 1 . . . . . . . . . . . Parts Attached 295 | 1 11 7 26 4 1 4 17 6 38 14 14 1 5 13 6 . 18 2 25 44 6 . 4 13 15 Power 37 | . 4 1 2 . . . 1 . 2 . 2 . . . . . 3 . 2 14 2 . . 2 2 Engine 10 | . 4 . 2 . . . 1 . 1 . 1 . . . . . . . . 1 . . . . . Core 11 | . . 1 . . . . . . 1 . 1 . . . . . . . . 8 . . . . . Reactor 16 | . . . . . . . . . . . . . . . . . 3 . 2 5 2 . . 2 2 Propulsion 94 | . . . 10 1 . 4 5 5 11 7 5 . 1 6 . . 4 . 6 14 . . 2 4 9 Treads . | . . . . . . . . . . . . . . . . . . . . . . . . . . Leg 84 | . . . 10 1 . 4 5 5 11 7 4 . 1 6 . . 4 . 6 14 . . 2 4 . Wheel 1 | . . . . . . . . . . . 1 . . . . . . . . . . . . . . Hover . | . . . . . . . . . . . . . . . . . . . . . . . . . . Flight 9 | . . . . . . . . . . . . . . . . . . . . . . . . . 9 Utility 78 | 1 3 3 5 3 1 . 5 . 11 4 3 1 2 4 3 . 4 2 9 4 2 . 2 4 2 Device 22 | 1 2 . 1 1 . . 1 . 2 . 1 . 1 2 1 . 1 2 3 1 . . 1 . 1 Storage 7 | . 1 1 . . 1 . 1 . 2 . . . . . . . . . . . . . . 1 . Processor 6 | . . . . . . . . . . 1 . . 1 1 1 . 1 . 1 . . . . . . Hackware 12 | . . . . . . . 1 . 2 2 1 . . 1 . . . . 1 1 . . 1 2 . Protection 31 | . . 2 4 2 . . 2 . 5 1 1 1 . . 1 . 2 . 4 2 2 . . 1 1 Artifact . | . . . . . . . . . . . . . . . . . . . . . . . . . . Weapon 86 | . 4 3 9 . . . 6 1 14 3 4 . 2 3 3 . 7 . 8 12 2 . . 3 2 Energy Gun 5 | . . . . . . . 2 . 1 . . . . . . . . . . 2 . . . . . Energy Cannon 2 | . . . 1 . . . . . . . . . . . . . . . . . . . . . 1 Ballistic Gun 58 | . 3 3 6 . . . 3 1 9 . 2 . . 3 3 . 4 . 5 10 2 . . 3 1 Ballistic Cannon 3 | . . . . . . . 1 . . . . . . . . . . . 2 . . . . . . Launcher 6 | . . . 1 . . . . . 2 1 1 . . . . . 1 . . . . . . . . Special Weapon . | . . . . . . . . . . . . . . . . . . . . . . . . . . Impact Weapon . | . . . . . . . . . . . . . . . . . . . . . . . . . . Slashing Weapon 8 | . 1 . 1 . . . . . 2 2 1 . 1 . . . . . . . . . . . . Piercing Weapon 3 | . . . . . . . . . . . . . . . . . 2 . 1 . . . . . . Special Melee Weapon 1 | . . . . . . . . . . . . . 1 . . . . . . . . . . . . Unidentified Prototypes 17 | . . . . 1 . . 1 . 3 . 1 . 1 . . . 6 . 2 . 2 . . . . Corrupted Parts 7 | . . . . . . . . . . . . . 1 2 . . . . . 1 2 . 1 . . System Corruption 45 | . . . . . . . . . . . . . 7 9 . . . . . 11 15 . 3 . . Parts Lost 66 | . 2 . . 1 . 6 1 1 7 . 1 . . 2 1 . . . 12 11 . . 7 1 13 Power 6 | . 1 . . . . . . . . . . . . 1 . . . . 2 2 . . . . . Propulsion 22 | . . . . . . 1 1 . 2 . 1 . . . . . . . 4 4 . . 2 1 6 Utility 14 | . . . . . . 1 . . . . . . . . 1 . . . 2 2 . . 2 . 6 Weapon 24 | . 1 . . 1 . 4 . 1 5 . . . . 1 . . . . 4 3 . . 3 . 1 Highest Loss Streak 10 | . 1 . . 1 . 2 1 1 3 . 1 . . 1 1 . . . 3 3 . . 7 1 10 To Critical Strikes 2 | . . . . 1 . . . . 1 . . . . . . . . . . . . . . . . Average Backups 12 | 6 9 10 10 9 10 13 13 14 14 14 14 13 13 13 14 14 13 12 11 13 13 14 13 11 8 Power . | 1 . . 1 1 1 1 1 2 . . 1 1 1 . . . . 1 . . . . . . . Propulsion 1 | 4 2 2 1 1 2 5 3 2 1 2 1 2 2 3 3 2 1 1 1 1 1 1 . 1 1 Utility 7 | . 3 6 6 6 6 6 7 9 9 7 7 7 7 8 8 10 9 7 6 9 9 9 8 5 3 Weapon 2 | 1 2 2 2 1 1 . 1 1 2 4 4 3 3 1 1 2 2 3 2 2 2 3 3 2 2 Tool/Special . | . . . . . . . . . . . . . . . . . . . . . . . . . . Unused Backups 56 | . 14 . 4 1 3 . 5 . 9 3 2 . . 1 1 . 5 . 1 1 1 . 2 . 3 Power 5 | . 2 . . . 2 . . . 1 . . . . . . . . . . . . . . . . Propulsion 14 | . 6 . 1 1 . . 1 . 1 . 1 . . . 1 . 1 . . . . . . . 1 Utility 24 | . 1 . 1 . 1 . 3 . 7 1 1 . . 1 . . 4 . 1 . 1 . 2 . . Weapon 12 | . 5 . 2 . . . 1 . . 2 . . . . . . . . . 1 . . . . 1 Tool/Special 1 | . . . . . . . . . . . . . . . . . . . . . . . . . 1 Average Slot Usage (%) 97 | . 97 100 99 99 100 71 96 100 98 99 99 99 99 95 99 100 98 100 91 99 93 100 99 94 82 Engine 5 | . 12 5 6 11 11 11 8 9 9 7 7 7 7 5 5 5 3 . . . . . . . . Core 1 | . . 8 4 . . . . . . . . . . . . . . . . 3 1 . . . . Reactor 1 | . . . . . . . . . . . . . . . . . 1 5 6 6 8 10 10 9 6 Leg 29 | . 28 28 32 33 33 33 35 36 35 30 29 30 30 28 29 29 29 29 25 25 26 26 25 19 14 Device 3 | . 10 . . . . . . . . 5 2 2 . 6 6 5 5 5 6 6 5 5 4 8 13 Storage 7 | . 14 14 11 11 11 11 9 9 9 7 7 7 7 5 5 5 5 5 5 5 5 5 5 4 2 Processor 6 | . . . . . . . . . . 6 7 7 7 10 14 17 17 17 15 15 15 15 15 9 8 Hackware 7 | . . . . . . . 8 9 10 12 15 15 15 13 5 5 5 5 9 7 10 10 13 17 13 Protection 6 | . 3 13 11 11 11 8 8 9 6 3 4 4 7 1 5 5 4 5 3 5 5 5 2 5 1 Ballistic Gun 20 | . 26 28 32 32 33 6 22 27 24 17 19 21 15 11 22 22 19 23 14 14 15 16 15 16 12 Peak Build Rating 146 | 7 8 14 19 24 18 18 32 32 38 57 62 61 59 103 102 99 123 123 146 122 135 135 134 140 140 Average Rating 60 | 6 7 11 17 17 17 13 28 31 32 49 52 55 54 94 98 98 105 122 132 116 124 134 128 132 119 On Entrance 65 | 6 7 8 14 17 18 18 10 32 31 37 51 59 54 56 103 99 97 123 123 108 122 135 134 96 140 Avg Prop Armor Cover (%) 6 | . . . . . . . . . . . . . . 9 6 7 8 3 3 . . . . . 6 Naked Turns . | . . . . . . . . . . . . . . . . . . . . . . . . . . Heaviest Build 99 | 12 20 38 32 31 40 35 43 43 47 61 48 47 47 55 60 53 70 70 98 83 84 84 84 97 99 Greatest Support 146 | 20 20 20 33 33 33 33 50 50 64 62 62 56 56 135 79 79 146 116 146 135 130 130 130 115 115 Greatest Overweight (x) 1 | . . 1 1 . 1 1 1 . . 1 1 . . . . . 1 . 1 . . . . 1 1 Average Overweight (x) . | . . . . . . . . . . . . . . . . . . . . . . . . . . Largest Inventory Capacity 15 | 8 10 15 15 10 15 15 15 15 15 15 15 15 15 15 15 15 15 15 15 15 15 15 15 15 15 Average Capacity 13 | 8 9 10 10 10 11 15 15 15 15 15 15 15 15 15 15 15 15 15 15 15 15 15 15 15 10 Most Carried 15 | 6 10 14 13 10 10 15 15 15 15 15 15 15 15 15 15 15 15 15 15 15 15 15 15 15 15 Average Carried 13 | 6 9 10 10 9 9 13 13 14 14 14 14 14 14 14 14 15 14 15 13 14 14 15 14 12 10 Final Capacity 15 | 8 10 15 10 10 15 15 15 15 15 15 15 15 15 15 15 15 15 15 15 15 15 15 15 15 5 Final Carried 15 | 6 10 14 10 10 10 13 15 15 14 15 15 15 15 15 15 15 15 15 15 14 15 15 12 15 4 Class Distribution -------------------- 16% | Mutant 14% | Scavenger-Tank 12% | Scavenger-Gunner 11% | Hacker-Mutant 10% | Tank 6% | Hacker-Gunner 5% | Hacker-Tank 5% | Gunner 5% | Hacker-Skirmisher Dominant Class ---------------- Mutant | -10/Materials Mutant | -10/Mines Scavenger-Tank | -9/Materials Scavenger-Tank | -9/Mines Tank | -9/Exiles Mutant | -8/Mines Scavenger-Tank | -8/Materials Scavenger-Tank | -8/Garrison Tank | -8/Materials Scientist-Mutant | -7/Factory Hacker-Tank | -7/Storage Hacker-Tank | -7/Recycling Hacker-Mutant | -7/Scraptown Hacker-Skirmisher | -5/Factory Derelict-Gunner | -5/Upper Caves Derelict-Gunner | -5/Upper Caves Gunner | -5/Warlord Gunner | -4/Proximity Caves Hacker-Gunner | -4/Factory Scavenger-Gunner | -4/Extension Commander-Gunner | -4/Cetus Commander-Gunner | -4/Archives Scavenger-Gunner | -4/Hub_04(d) Hacker-Gunner | -3/Research Hacker-Skirmisher | -3/Armory Resources | -11 -10 -10 -9 -9 -9 -8 -8 -8 -8 -7 -7 -7 -7 -5 -5 -5 -5 -4 -4 -4 -4 -4 -4 -3 -3 ----------- Run | Yrd Mat Min Mat Min Exi Min Mat Gar Mat Fac Sto Rec Scr Fac Upp Upp War Pro Fac Ext Cet Arc Hub Res Arm Matter Collected 15324 | 260 579 363 1657 357 9 224 726 383 1951 439 979 320 208 659 318 . 644 31 1476 2346 205 33 233 643 281 Remotely . | . . . . . . . . . . . . . . . . . . . . . . . . . . Salvage Created 16842 | 118 638 419 1905 416 . 389 1119 470 2236 436 1040 370 309 921 157 . 356 . 1918 2128 103 70 198 709 417 Parts 890 | 7 44 24 114 35 . 19 74 30 116 25 49 9 16 49 7 . 16 . 87 97 5 5 15 27 20 Haulers Intercepted 15 | . 2 . 5 . . . 4 . 3 . . . . . . . . . 1 . . . . . . Recyclers Shooed 18 | 1 1 . 4 . . 2 2 . 1 1 1 . . . . . . . 5 . . . . . . Parts Field Recycled . | . . . . . . . . . . . . . . . . . . . . . . . . . . Retrieved Matter . | . . . . . . . . . . . . . . . . . . . . . . . . . . Parts Self-Destructed 15 | . . . . . . . . . . . . . . . 15 . . . . . . . . . . Prevented 1 | . . . . . . . . . . . . . . . 1 . . . . . . . . . . Parts Restored 1 | . . . . . . . . . 1 . . . . . . . . . . . . . . . . Broken 1 | . . . . . . . . . 1 . . . . . . . . . . . . . . . . Kills | -11 -10 -10 -9 -9 -9 -8 -8 -8 -8 -7 -7 -7 -7 -5 -5 -5 -5 -4 -4 -4 -4 -4 -4 -3 -3 ------- Run | Yrd Mat Min Mat Min Exi Min Mat Gar Mat Fac Sto Rec Scr Fac Upp Upp War Pro Fac Ext Cet Arc Hub Res Arm Combat Hostiles Destroyed 271 | . 15 6 31 14 . 8 23 12 38 4 16 3 4 10 4 . 5 . 30 32 1 . 1 9 5 Melee 5 | . . . . . . . . . . . 2 . . 3 . . . . . . . . . . . Guns 217 | . 15 6 29 9 . 2 22 12 35 2 13 2 2 7 4 . 5 . 16 20 1 . 1 9 5 Cannons 13 | . . . . . . . . . . . . . . . . . . . 1 12 . . . . . AOE 33 | . . . 2 5 . 6 1 . 3 . 1 . 2 . . . . . 13 . . . . . . Classes Destroyed 22 | 2 5 2 2 1 . . 1 1 1 1 . . 2 . . . 2 . 1 1 . . . . . Worker 11 | . 1 3 1 1 . . 1 . 1 1 . . . 1 . . . . . . . . 1 . . Builder 20 | . . 1 1 2 . 1 1 . 1 2 2 . . 3 . . . . 2 3 . . 1 . . Tunneler 8 | 2 . . 1 1 . 1 1 . 2 . . . . . . . . . . . . . . . . Hauler 15 | . 2 . 5 . . . 4 . 3 . . . . . . . . . 1 . . . . . . Recycler 24 | 1 1 4 5 . . 2 . . 3 1 1 2 . 1 . . . . 2 1 . . . . . Mechanic 2 | . . . . . . . . . 1 . . . . 1 . . . . . . . . . . . Operator 5 | . 2 . . . . . . . 1 . 1 . . . . . . . . 1 . . . . . Watcher 12 | . . . 4 . . . . . 1 2 . . . 1 . . . . 1 . 1 . 2 . . Swarmer 65 | . 6 4 8 8 . 1 10 4 5 . . . . . 4 . . . 12 3 . . . . . Grunt 103 | . 9 . 15 5 . 7 5 7 21 . 6 . . 4 . . 1 . 7 11 . . 1 4 . Brawler 4 | . . . . 1 . . . . 1 . 1 . . . . . 1 . . . . . . . . Duelist 4 | . . . . . . . . 1 1 . 1 . . . . . . . 1 . . . . . . Protector 1 | . . . . . . . . . . . . . . . . . 1 . . . . . . . . Sentry 57 | . . . 8 . . . 7 . 9 . 7 3 . 2 . . . . 5 12 . . . 2 2 Specialist 2 | . . . . . . . . . . . . . . . . . . . 2 . . . . . . Hunter 13 | . . . . . . . 1 . 1 3 1 . . 2 . . 1 . . 3 . . . 1 . Programmer 13 | . . . . . . . . . . 1 . . . 2 . . . . 3 2 . . . 2 3 Behemoth 1 | . . . . . . . . . . . . . . . . . . . . 1 . . . . . Cetus Guard 1 | . . . . . . . . . . . . . . . . . . . . . 1 . . . . Enhanced Grunt 1 | . . . . . . . . . . . . . . . . . 1 . . . . . . . . Executioner 1 | . . . . . . . . . . . . . . . . . 1 . . . . . . . . Scrapper 3 | . . . . . . . . . . . . . 3 . . . . . . . . . . . . Tinkerer 1 | . . . . . . . . . . . . . 1 . . . . . . . . . . . . Assembled 2 | . . 2 . . . . . . . . . . . . . . . . . . . . . . . Thug 2 | . . . . . . . . . . . . . 1 . 1 . . . . . . . . . . Savage 1 | . . . . . . . . . . . . . . . . . . . . 1 . . . . . Best Kill Streak 6 | 2 3 3 4 5 . 5 5 4 6 2 5 3 5 6 3 . 3 . 5 3 2 . 3 4 3 Combat Bots Only 5 | . 3 3 4 5 . 3 5 4 5 2 4 2 4 4 3 . 3 . 5 3 1 . 1 4 3 Max Kills in Single Turn 4 | 1 2 2 2 3 . 2 2 2 2 1 2 2 3 2 2 . 2 . 4 2 1 . 2 3 1 Gunslinging 1 | . 1 1 . 1 . . 1 1 . . . . . . 1 . 1 . . 1 . . . 1 . Exploded 4 | . . . 2 3 . 1 1 . 2 . 1 . 2 . . . . . 4 . . . . . . Melee 1 | . . . . . . . . . . . 1 . . 1 . . . . . . . . . . . Uniques/NPCs Destroyed . | . . . . . . . . . . . . . . . . . . . . . . . . . . Combat | -11 -10 -10 -9 -9 -9 -8 -8 -8 -8 -7 -7 -7 -7 -5 -5 -5 -5 -4 -4 -4 -4 -4 -4 -3 -3 -------- Run | Yrd Mat Min Mat Min Exi Min Mat Gar Mat Fac Sto Rec Scr Fac Upp Upp War Pro Fac Ext Cet Arc Hub Res Arm Hostile Shots Fired 2071 | . 68 14 96 22 . 35 62 48 166 53 147 54 13 105 22 . 22 . 469 230 20 2 158 32 233 Missed 711 | . 17 6 21 5 . 9 20 5 41 19 38 18 5 38 11 . 5 . 197 78 8 1 55 14 100 Hits 1360 | . 51 8 75 17 . 26 42 43 125 34 109 36 8 67 11 . 17 . 272 152 12 1 103 18 133 Melee 10 | . . . . 1 . . . 1 2 . . . . . . . . . 5 . . . . . 1 Projectile 1350 | . 51 8 75 16 . 26 42 42 123 34 109 36 8 67 11 . 17 . 267 152 12 1 103 18 132 AOE 1 | . . . . . . . . . . . . . . . . . . . . . . . . . 1 Critical Strikes 52 | . 2 . 2 1 . 2 . 2 5 1 1 . . 4 . . 1 . 14 5 1 1 6 1 3 Part Disruptions 2 | . . . . . . . . . . . . . . . . . 2 . . . . . . . . Damage Taken 22573 | . 583 76 858 221 . 605 520 627 1841 440 973 270 191 1141 190 . 396 . 4743 3139 301 22 2112 363 2961 Core 3058 | . 135 9 52 15 . 60 87 69 150 41 68 16 42 91 30 . 9 . 366 261 . . 237 23 1297 Absorbed by Shields 470 | . . . . . . . . . . . . . . . . . . . . 148 64 . . . 258 Ignored by Resistances 62 | . . . . . . . . . . 24 . . . 38 . . . . . . . . . . . Regen/Repaired (Parts) 1281 | . . . . . . . 157 . 64 . 429 . . 23 . . 94 . 514 . . . . . . Core Remaining (%) 63 | 100 . 42 . . . 68 . . 44 . . . 76 . . . . 87 . . . . 24 . . Volleys Fired 881 | 15 70 42 97 23 . 25 47 31 131 26 56 13 8 39 5 . 14 3 89 91 14 . 6 18 18 Largest 4 | 2 2 2 3 3 . 3 3 3 3 3 3 3 3 3 4 . 4 1 4 4 4 . 4 4 4 Hottest 174 | 40 40 40 69 79 . 69 131 78 105 75 78 78 75 94 117 . 137 38 151 174 138 . 138 150 150 Shots Fired 2327 | 30 140 84 282 64 . 31 130 77 340 35 156 31 16 100 19 . 56 3 191 337 57 . 21 62 65 Gun 2200 | 30 140 84 281 61 . 21 130 77 338 19 153 27 12 92 19 . 56 3 180 272 57 . 21 62 65 Cannon 71 | . . . . . . . . . . . . . . . . . . . 6 65 . . . . . Launcher 56 | . . . 1 3 . 10 . . 2 16 3 4 4 8 . . . . 5 . . . . . . Special . | . . . . . . . . . . . . . . . . . . . . . . . . . . Kinetic 2249 | 30 140 84 281 61 . 21 116 77 332 19 153 27 12 92 19 . 56 3 186 335 57 . 21 62 65 Thermal 15 | . . . . . . . 7 . 6 . . . . . . . . . . 2 . . . . . Explosive 16 | . . . 1 3 . 10 . . 2 . . . . . . . . . . . . . . . . Electromagnetic 46 | . . . . . . . 7 . . 16 3 4 4 8 . . . . 4 . . . . . . Entropic 1 | . . . . . . . . . . . . . . . . . . . 1 . . . . . . Robot Hit Streak 23 | 6 9 5 14 8 . 11 23 18 19 6 18 11 2 6 7 . 8 . 20 21 11 . 14 11 19 Robot Miss Streak 9 | 2 3 4 4 1 . 1 4 3 5 2 7 3 3 6 3 . 9 . 5 9 2 . 4 3 1 Penetration Max 2 | . . . . . . . 1 . 1 . . . . . . . 1 . 2 1 1 . 1 2 1 Secondary Targets 36 | . 1 3 1 2 . . 2 5 5 . 1 . . 1 2 . 2 . 2 4 . . . 3 2 Max Gunslinging Chain 2 | . 1 1 1 1 . . 1 1 1 . 1 . . 1 2 . 1 . 1 1 . . . 1 1 Shots Hit Robots 1558 | 21 89 44 184 40 . 21 91 44 236 19 110 23 21 65 9 . 29 . 126 235 33 2 19 44 53 Core Hits 789 | 5 41 18 71 25 . 27 42 22 98 11 58 21 8 33 7 . 15 . 80 147 14 2 9 20 15 Critical Kills 26 | . . . 1 . . . 1 . . . . . . 1 . . 2 . 9 3 . . . 6 3 Critical Parts Destroyed 37 | . . . 1 . . . 1 . 2 . . . . . 1 . . . 13 3 2 . . 5 9 Critical Strikes 72 | . . . 2 . . . 2 . 2 . . . . 2 1 . 3 . 24 6 3 2 1 11 13 Destroy 68 | . . . 2 . . . 2 . 2 . . . . 1 1 . 3 . 24 6 3 . . 11 13 Sever 1 | . . . . . . . . . . . . . . 1 . . . . . . . . . . . Impale 3 | . . . . . . . . . . . . . . . . . . . . . . 2 1 . . Melee Attacks 136 | . 6 . . . . . . . 8 15 18 . 16 32 . 1 1 . 11 . . 2 14 2 10 Impact . | . . . . . . . . . . . . . . . . . . . . . . . . . . Slashing 87 | . 6 . . . . . . . 8 15 18 . . 32 . 1 . . 7 . . . . . . Piercing 32 | . . . . . . . . . . . . . . . . . . . 4 . . 2 14 2 10 Entropic 1 | . . . . . . . . . . . . . . . . . 1 . . . . . . . . Sneak Attacks 32 | . 2 . . . . . . . 2 4 1 . 16 5 . . . . 2 . . . . . . Combat Hostiles . | . . . . . . . . . . . . . . . . . . . . . . . . . . Follow-up Attacks . | . . . . . . . . . . . . . . . . . . . . . . . . . . Damage Inflicted 37526 | 222 1016 531 2978 941 . 1061 1849 801 4110 805 2230 658 479 2172 216 . 987 . 5615 7022 929 153 712 825 1214 Guns 27991 | 222 891 531 2807 603 . 259 1737 801 3778 182 1868 479 97 1143 216 . 987 . 2781 5233 929 . 416 825 1206 Cannons 1998 | . . . . . . . . . . . . . . . . . . . 212 1786 . . . . . Explosions 5101 | . . . 170 338 . 799 44 . 150 258 165 78 382 302 . . . . 2415 . . . . . . Melee 2153 | . 125 . . . . . . . 136 365 197 . . 727 . . . . 198 . . 153 252 . . Ramming 283 | . . . 1 . . 3 68 . 46 . . 101 . . . . . . 9 3 . . 44 . 8 Kinetic 29810 | 222 891 531 2807 603 . 259 1645 801 3691 182 1868 479 97 1143 216 . 987 . 2993 7019 929 . 416 825 1206 Thermal 1041 | . . . . . . . 89 . 87 . . . 99 . . . . . 766 . . . . . . Explosive 1924 | . . . 170 338 . 799 . . 150 . . . . . . . . . 467 . . . . . . Electromagnetic 1570 | . . . . . . . 47 . . 258 165 78 283 302 . . . . 437 . . . . . . Impact . | . . . . . . . . . . . . . . . . . . . . . . . . . . Slashing 1696 | . 125 . . . . . . . 136 365 197 . . 727 . . . . 146 . . . . . . Piercing 457 | . . . . . . . . . . . . . . . . . . . 52 . . 153 252 . . Entropic 745 | . . . . . . . . . . . . . . . . . . . 745 . . . . . . Highest Corruption 34 | . 3 3 . 1 1 1 . . . 3 3 . 7 13 13 13 13 1 1 14 29 29 34 . 6 Average Corruption 5 | . 2 3 . 1 1 1 . . . 1 2 . 7 7 13 13 9 1 1 3 26 29 29 . 5 Corruption Purged 3 | . . . . . . . . . . . 3 . . . . . . . . . . . . . . Corruption Blocked . | . . . . . . . . . . . . . . . . . . . . . . . . . . Effects 210 | . 9 28 . 6 1 6 . . . 7 . . . 25 12 10 3 . 3 44 24 4 19 . 9 Message Errors 39 | . 2 7 . . . 1 . . . 2 . . . 4 4 1 . . . 11 3 . 2 . 2 Matter Fused 52 | . 5 6 . 3 1 1 . . . 1 . . . 6 4 3 1 . 1 9 3 1 5 . 2 Heat Flow Errors 21 | . . 1 . . . 2 . . . . . . . 2 . 3 1 . 1 2 5 1 2 . 1 Energy Discharges 23 | . 1 4 . . . . . . . 2 . . . 3 1 . . . . 5 4 . 2 . 1 Parts Rejected 2 | . . 1 . . . . . . . . . . . . . . . . . 1 . . . . . Parts Fused 4 | . . . . . . . . . . . . . . 1 . 1 . . . 1 1 . . . . Data Loss (minor) 22 | . 1 3 . 1 . . . . . 1 . . . 2 1 1 1 . . 3 2 2 2 . 2 Data Loss (major) 16 | . . 1 . 1 . 1 . . . 1 . . . 4 1 . . . . 4 2 . 1 . . Misfires 11 | . . 2 . 1 . 1 . . . . . . . . 1 . . . 1 2 2 . 1 . . Alerts 3 | . . 1 . . . . . . . . . . . . . 1 . . . . 1 . . . . Misdirections 5 | . . . . . . . . . . . . . . 2 . . . . . . . . 3 . . Weapon Failures 12 | . . 2 . . . . . . . . . . . 1 . . . . . 6 1 . 1 . 1 Overload Shots . | . . . . . . . . . . . . . . . . . . . . . . . . . . Overflow Damage 613 | . 90 . 18 17 . 41 . . 66 83 62 . 23 . . . . . 164 . . . 49 . . Projectiles . | . . . . . . . . . . . . . . . . . . . . . . . . . . Explosions 261 | . . . 18 17 . 41 . . 10 . . . 23 . . . . . 152 . . . . . . Melee 352 | . 90 . . . . . . . 56 83 62 . . . . . . . 12 . . . 49 . . Knockbacks 9 | . . . . . . . 1 . 1 . . 1 . . . . . . . 5 . . 1 . . Impact 4 | . . . . . . . 1 . 1 . . 1 . . . . . . . . . . 1 . . Kinetic 4 | . . . . . . . . . . . . . . . . . . . . 4 . . . . . Secondary 1 | . . . . . . . . . . . . . . . . . . . . 1 . . . . . Self-Inflicted Damage 435 | . . . . 30 . 153 . . . 7 8 . 31 22 . . . . 184 . . . . . . Shots 17 | . . . . 1 . 6 . . . 2 1 . 2 1 . . . . 4 . . . . . . Rammed . | . . . . . . . . . . . . . . . . . . . . . . . . . . Targets Rammed 28 | . . . 1 . . 1 6 . 5 . . 6 . . . . . . 2 1 . . 5 . 1 Kicked 28 | . . . 1 . . 1 6 . 5 . . 6 . . . . . . 2 1 . . 5 . 1 Crushed . | . . . . . . . . . . . . . . . . . . . . . . . . . . Highest Temperature 427 | . 25 200 204 62 . 148 228 262 224 96 243 162 114 259 77 192 297 . 208 354 324 62 353 427 301 Average Temperature 70 | . 7 25 48 18 . 36 58 88 57 31 92 64 49 72 27 93 71 . 57 96 133 40 135 158 87 Received Heat Transfer 4577 | . 192 40 291 57 . 270 144 324 801 81 345 78 87 180 9 . . . 616 350 . . 497 42 173 Effects 12 | . . . . . . . . . . . 4 . . . . . . . . 3 . . 1 2 2 Shutdowns 2 | . . . . . . . . . . . . . . . . . . . . 1 . . 1 . . Energy Bleed 3 | . . . . . . . . . . . 1 . . . . . . . . 2 . . . . . Interference 5 | . . . . . . . . . . . 3 . . . . . . . . . . . . . 2 Matter Decay 1 | . . . . . . . . . . . . . . . . . . . . . . . . 1 . Damage (minor) 1 | . . . . . . . . . . . . . . . . . . . . . . . . 1 . Siege Activations . | . . . . . . . . . . . . . . . . . . . . . . . . . . Martial Activations . | . . . . . . . . . . . . . . . . . . . . . . . . . . Shielding Activations . | . . . . . . . . . . . . . . . . . . . . . . . . . . Robots Disrupted 2 | . . . . . . . . . . 1 . . . . . . . . 1 . . . . . . Combat Hostiles 2 | . . . . . . . . . . 1 . . . . . . . . 1 . . . . . . Robots Corrupted 3 | . . . . . . . . . . 2 . 1 . . . . . . . . . . . . . Combat Hostiles 3 | . . . . . . . . . . 2 . 1 . . . . . . . . . . . . . Parts Fried 10 | . . . . . . . . . . 1 2 2 2 2 . . . . . 1 . . . . . Impact Corruptions . | . . . . . . . . . . . . . . . . . . . . . . . . . . Robots Melted . | . . . . . . . . . . . . . . . . . . . . . . . . . . Combat Hostiles . | . . . . . . . . . . . . . . . . . . . . . . . . . . Parts Melted 5 | . . . . . . 1 1 . . . . . 3 . . . . . . . . . . . . Heat Transferred 853 | . . . . . . . 161 . 105 . . . 87 . . . . . 500 . . . . . . Parts Sabotaged . | . . . . . . . . . . . . . . . . . . . . . . . . . . Parts Stolen . | . . . . . . . . . . . . . . . . . . . . . . . . . . Parts Stripped . | . . . . . . . . . . . . . . . . . . . . . . . . . . Power Chain Reactions 5 | . . . . . . . 1 . . . . . 1 . . . . . 3 . . . . . . Alert | -11 -10 -10 -9 -9 -9 -8 -8 -8 -8 -7 -7 -7 -7 -5 -5 -5 -5 -4 -4 -4 -4 -4 -4 -3 -3 ------- Run | Yrd Mat Min Mat Min Exi Min Mat Gar Mat Fac Sto Rec Scr Fac Upp Upp War Pro Fac Ext Cet Arc Hub Res Arm Maximum Alert Level 3 | . . . 2 1 . . 1 2 3 1 1 . . . . . . . 3 3 2 2 1 . . Low Security (%) 54 | 100 100 100 54 . . 100 71 37 3 79 88 100 . 100 . . . . . . . 56 99 100 100 Level 1 24 | . . . 25 99 . . 28 32 14 20 11 . . . . . . . 37 76 42 40 . . . Level 2 16 | . . . 19 . . . . 29 80 . . . . . . . . . 20 16 57 2 . . . Level 3 4 | . . . . . . . . . 1 . . . . . . . . . 41 7 . . . . . Level 4 . | . . . . . . . . . . . . . . . . . . . . . . . . . . Level 5 . | . . . . . . . . . . . . . . . . . . . . . . . . . . High Security . | . . . . . . . . . . . . . . . . . . . . . . . . . . Max Security . | . . . . . . . . . . . . . . . . . . . . . . . . . . Peak Influence 918 | 10 149 74 515 385 . 140 307 483 706 319 236 40 . 134 . . . . 918 828 515 413 203 141 151 Initial 423 | . . 54 . 200 . . 47 145 235 319 24 40 . . . . . . 300 423 313 185 112 62 54 Average 233 | 2 37 10 224 313 . 56 136 278 497 125 107 4 . 41 . . . . 596 396 412 245 125 79 39 Influence Increases 11113 | 15 522 144 1004 426 . 451 690 348 1201 245 510 92 . 385 150 . 85 . 1839 1467 384 338 227 251 339 Destroy 0b10 Robot/C 5880 | . 300 80 620 280 . 240 460 240 760 80 320 60 . 200 80 . 80 . 600 820 160 160 20 180 140 Destroy 0b10 Robot/NC 515 | 15 30 40 85 20 . 20 35 . 65 30 20 10 . 35 . . 5 . 30 35 10 10 20 . . Destroy Leader 1196 | . 64 20 158 40 . 40 128 30 208 34 100 . . 52 10 . . . 124 104 . . 4 50 30 Allied During Kill 570 | . . 4 . . . 16 . . . . . . . . . . . . . 231 170 149 . . . Successful Hack 461 | . 51 . 29 6 . . 28 38 13 32 13 22 . 31 . . . . 82 47 . . 30 15 24 Select Force Hacks 90 | . 60 . 30 . . . . . . . . . . . . . . . . . . . . . . Disable Machine 405 | . 15 . . . . 15 . . 30 15 30 . . 15 . . . . 210 . . 15 30 . 30 Destroy Structure 751 | . 2 . 22 20 . 75 9 10 20 9 12 . . 52 . . . . 358 80 44 4 18 6 10 Advance Influence 300 | . . . . . . . . . . . . . . . . . . . 300 . . . . . . Partial Spotted 30 | . . . 15 . . . . . . 15 . . . . . . . . . . . . . . . Lose Combat Pursuer 915 | . . . 45 60 . 45 30 30 105 30 15 . . . 60 . . . 135 150 . . 105 . 105 Influence Decreases 11053 | 15 381 285 489 675 266 328 589 89 980 895 460 196 . 321 199 15 28 57 974 1772 481 478 431 265 384 Entered New Map 2922 | . . 87 . 315 266 . 76 79 248 385 30 64 . . 25 4 . 57 . 442 247 278 211 57 51 Time Decay 6441 | 15 371 198 489 350 . 278 503 . 662 470 420 132 . 311 164 11 28 . 574 660 214 40 150 198 203 Search Patrol Dispatched 100 | . . . . . . . . . . . . . . . . . . . 100 . . . . . . Lost Part 620 | . 10 . . 10 . 50 . 10 70 . 10 . . 10 10 . . . 120 110 . . 70 10 130 Lost Ally 520 | . . . . . . . 10 . . 40 . . . . . . . . 30 260 20 160 . . . Purge Threat 450 | . . . . . . . . . . . . . . . . . . . 150 300 . . . . . Squads Dispatched 73 | . 3 . 4 . . . 1 . 9 8 4 . . 6 . . . . 20 5 . . 5 6 2 Investigation 22 | . 2 . 2 . . . . . 3 4 1 . . 3 . . . . 3 1 . . 1 2 . Extermination 12 | . . . . . . . . . . 2 2 . . 1 . . . . 3 . . . 1 1 2 Reinforcement 23 | . 1 . 1 . . . 1 . 3 2 1 . . 1 . . . . 5 4 . . 3 1 . Assault 4 | . . . 1 . . . . . . . . . . . . . . . 3 . . . . . . Garrison 12 | . . . . . . . . . 3 . . . . 1 . . . . 6 . . . . 2 . Intercept . | . . . . . . . . . . . . . . . . . . . . . . . . . . Searches Triggered 1 | . . . . . . . . . . . . . . . . . . . 1 . . . . . . Unchained Authorized 1 | . . . . . . . . . . . . . . . . . . . 1 . . . . . . Construction Impeded 4 | . . . . . . . . . . . . . . 1 . . . . 1 2 . . . . . Haulers Reinforced . | . . . . . . . . . . . . . . . . . . . . . . . . . . Active Scanning Responses . | . . . . . . . . . . . . . . . . . . . . . . . . . . Cargo Convoy Interrupts 1 | . . . . . . . . . . . . . . 1 . . . . . . . . . . . Stealth | -11 -10 -10 -9 -9 -9 -8 -8 -8 -8 -7 -7 -7 -7 -5 -5 -5 -5 -4 -4 -4 -4 -4 -4 -3 -3 --------- Run | Yrd Mat Min Mat Min Exi Min Mat Gar Mat Fac Sto Rec Scr Fac Upp Upp War Pro Fac Ext Cet Arc Hub Res Arm Distress Signals 30 | . 1 . 5 . . . 2 . 5 1 4 . . 1 . . . . 1 3 2 . 2 1 2 Communications Jammed . | . . . . . . . . . . . . . . . . . . . . . . . . . . Distress Signals . | . . . . . . . . . . . . . . . . . . . . . . . . . . Times Spotted 560 | . 32 26 42 16 . 15 40 15 60 13 28 2 7 16 19 . 31 2 58 47 8 1 29 10 43 Peak Tracking Total 27 | . 3 12 6 4 . 3 6 4 6 8 5 2 4 4 5 . 11 2 12 6 5 3 20 4 27 Tactical Retreats 42 | . . 1 3 3 . 1 1 2 6 2 1 . . . 4 . . . 4 7 . . 3 . 4 Traps | -11 -10 -10 -9 -9 -9 -8 -8 -8 -8 -7 -7 -7 -7 -5 -5 -5 -5 -4 -4 -4 -4 -4 -4 -3 -3 ------- Run | Yrd Mat Min Mat Min Exi Min Mat Gar Mat Fac Sto Rec Scr Fac Upp Upp War Pro Fac Ext Cet Arc Hub Res Arm Traps Triggered 12 | . 3 . . . . . . . 4 1 . . . 2 . . 1 . . . . . . . 1 Indirectly . | . . . . . . . . . . . . . . . . . . . . . . . . . . Trap Hack Attempts . | . . . . . . . . . . . . . . . . . . . . . . . . . . Triggered . | . . . . . . . . . . . . . . . . . . . . . . . . . . Disarmed . | . . . . . . . . . . . . . . . . . . . . . . . . . . Reprogrammed . | . . . . . . . . . . . . . . . . . . . . . . . . . . Reused . | . . . . . . . . . . . . . . . . . . . . . . . . . . Traps Extracted . | . . . . . . . . . . . . . . . . . . . . . . . . . . Installed . | . . . . . . . . . . . . . . . . . . . . . . . . . . Triggered . | . . . . . . . . . . . . . . . . . . . . . . . . . . Machines | -11 -10 -10 -9 -9 -9 -8 -8 -8 -8 -7 -7 -7 -7 -5 -5 -5 -5 -4 -4 -4 -4 -4 -4 -3 -3 ---------- Run | Yrd Mat Min Mat Min Exi Min Mat Gar Mat Fac Sto Rec Scr Fac Upp Upp War Pro Fac Ext Cet Arc Hub Res Arm Machines Disabled 33 | . 1 . 1 . . 1 . 1 2 1 2 . . 1 1 . 1 . 14 2 . 1 2 . 2 Max in Single Turn 4 | . 1 . 1 . . 1 . 1 1 1 1 . . 1 1 . 1 . 4 1 . . 1 . 1 Garrison Access 4 | . . . . . . . . . . 1 . . . 1 . . . . 1 . . . . 1 . Machines Repaired . | . . . . . . . . . . . . . . . . . . . . . . . . . . Machines Dismantled . | . . . . . . . . . . . . . . . . . . . . . . . . . . Machines Sabotaged . | . . . . . . . . . . . . . . . . . . . . . . . . . . Overloaded Fab Kills . | . . . . . . . . . . . . . . . . . . . . . . . . . . Hacking | -11 -10 -10 -9 -9 -9 -8 -8 -8 -8 -7 -7 -7 -7 -5 -5 -5 -5 -4 -4 -4 -4 -4 -4 -3 -3 --------- Run | Yrd Mat Min Mat Min Exi Min Mat Gar Mat Fac Sto Rec Scr Fac Upp Upp War Pro Fac Ext Cet Arc Hub Res Arm Machines Accessed 136 | . 10 . 10 2 1 . 12 4 13 13 11 6 7 6 2 . 3 . 16 10 1 1 5 2 1 Terminals 88 | . 7 . 8 1 . . 9 4 8 8 8 5 . 2 . . . . 10 10 1 . 5 1 1 Fabricators 6 | . . . . . . . . . . 2 . . . 2 . . . . 2 . . . . . . Repair Stations 10 | . 1 . . . . . 2 . 1 1 2 . . 1 . . . . 2 . . . . . . Recycling Units 5 | . 2 . 1 . . . . . 1 . . 1 . . . . . . . . . . . . . Scanalyzers 5 | . . . 1 . . . . . 2 1 . . . . . . . . 1 . . . . . . Garrison Access 7 | . . . . . . . 1 . 1 1 1 . . 1 . . . . 1 . . . . 1 . Total Hacks 464 | . 38 . 31 4 1 . 34 9 55 33 32 13 50 18 6 . 9 . 61 25 1 25 12 5 2 Successful 305 | . 25 . 18 2 1 . 24 3 38 19 18 11 50 9 6 . 9 . 25 14 1 25 4 2 1 Failed 158 | . 13 . 13 1 . . 10 6 17 14 14 2 . 9 . . . . 36 11 . . 8 3 1 Catastrophic 25 | . . . . . . . . 3 1 3 2 . . 3 . . . . 11 . . . 2 . . Database Lockouts 1 | . . . . 1 . . . . . . . . . . . . . . . . . . . . . Manual 176 | . 25 . 22 3 . . 21 5 22 15 10 10 . 5 . . . . 23 9 1 . 5 . . Terminals 262 | . 30 . 25 3 . . 28 9 28 19 24 12 . 7 . . . . 33 25 1 . 12 4 2 Fabricators 23 | . . . . . . . . . . 7 . . . 8 . . . . 8 . . . . . . Repair Stations 33 | . 3 . . . . . 5 . 2 2 6 . . 2 . . . . 13 . . . . . . Recycling Units 9 | . 5 . 2 . . . . . 1 . . 1 . . . . . . . . . . . . . Scanalyzers 28 | . . . 4 . . . . . 18 2 . . . . . . . . 4 . . . . . . Garrison Access 17 | . . . . . . . 1 . 6 3 2 . . 1 . . . . 3 . . . . 1 . Terminal Hacks 170 | . 9 . 2 2 1 . 7 3 9 7 8 2 50 3 6 . 9 . 9 12 1 25 3 1 1 Record 89 | . . . . . 1 . . . . . . . 48 1 5 . 8 . 1 . . 25 . . . Part Schematic 7 | . . . . . . . 1 . . 2 1 1 . 2 . . . . . . . . . . . Robot Analysis 9 | . 3 . . 1 . . . . 1 . 1 1 . . . . . . 1 1 . . . . . Prototype ID Bank 6 | . 2 . 1 . . . 1 . 2 . . . . . . . . . . . . . . . . Open Door 13 | . . . . 1 . . . . . . 3 . 1 . 1 . 1 . 1 4 1 . . . . Level Access Points 3 | . . . 1 . . . . . . . . . . . . . . . 1 . . . . 1 . Branch Access Points 3 | . 1 . . . . . . . 1 . . . . . . . . . 1 . . . . . . Emergency Access Points 2 | . . . . . . . . 1 . . . . . . . . . . 1 . . . . . . Terminal Index 4 | . . . . . . . 1 . 1 1 . . . . . . . . . . . . 1 . . Fabricator Index 1 | . . . . . . . . . . 1 . . . . . . . . . . . . . . . Repair Station Index 1 | . . . . . . . . . . . . . . . . . . . . 1 . . . . . Alert Level 4 | . . . . . . . 1 . . 1 . . . . . . . . 1 1 . . . . . Unreport Threat 3 | . . . . . . . . . . . . . . . . . . . 1 2 . . . . . Locate Traps 11 | . 2 . . . . . 2 . 4 . 1 . . . . . . . . 2 . . . . . Security Status 1 | . . . . . . . . . . 1 . . . . . . . . . . . . . . . Recall Extermination 2 | . . . . . . . . . . . 1 . . . . . . . . . . . . . 1 Recall Reinforcements 1 | . . . . . . . . . . . . . . . . . . . . 1 . . . . . Hauler Manifests 1 | . . . . . . . 1 . . . . . . . . . . . . . . . . . . Zone Layout 6 | . 1 . . . . . . . . 1 1 . . . . . . . 1 . . . 2 . . Garrison Registry 1 | . . . . . . . . 1 . . . . . . . . . . . . . . . . . Security Stations 1 | . . . . . . . . 1 . . . . . . . . . . . . . . . . . Proto ID Catalog 1 | . . . . . . . . . . . . . 1 . . . . . . . . . . . . Fabricator Hacks 11 | . . . . . . . . . . 5 . . . 3 . . . . 3 . . . . . . Load Schematic 6 | . . . . . . . . . . 3 . . . 2 . . . . 1 . . . . . . Build 5 | . . . . . . . . . . 2 . . . 1 . . . . 2 . . . . . . Repair Station Hacks 22 | . 2 . . . . . 4 . 2 . 6 . . . . . . . 8 . . . . . . Scan Component 11 | . . . . . . . 2 . 1 . 3 . . . . . . . 5 . . . . . . Repair 9 | . . . . . . . 2 . 1 . 3 . . . . . . . 3 . . . . . . Refit 2 | . 2 . . . . . . . . . . . . . . . . . . . . . . . . Recycling Unit Hacks 4 | . 1 . 1 . . . . . 1 . . 1 . . . . . . . . . . . . . Retrieve Components 4 | . 1 . 1 . . . . . 1 . . 1 . . . . . . . . . . . . . Scanalyzer 22 | . . . 3 . . . . . 17 1 . . . . . . . . 1 . . . . . . Insert Component 4 | . . . . . . . . . 4 . . . . . . . . . . . . . . . . Analyze 7 | . . . . . . . . . 7 . . . . . . . . . . . . . . . . Retrieve Study 11 | . . . 3 . . . . . 6 1 . . . . . . . . 1 . . . . . . Garrison Access Hacks 5 | . . . . . . . 1 . . 1 . . . 1 . . . . 1 . . . . 1 . Unlock Access 1 | . . . . . . . 1 . . . . . . . . . . . . . . . . . . Seal Access 4 | . . . . . . . . . . 1 . . . 1 . . . . 1 . . . . 1 . Unauthorized Hacks 71 | . 13 . 12 . . . 12 . 9 5 4 8 . 2 . . . . 3 2 . . 1 . . Terminals 64 | . 11 . 11 . . . 11 . 9 4 4 8 . 1 . . . . 2 2 . . 1 . . Track 1 | . . . . . . . . . 1 . . . . . . . . . . . . . . . . Assimilate 2 | . 1 . . . . . 1 . . . . . . . . . . . . . . . . . . Botnet 29 | . 4 . 4 . . . 4 . 3 3 2 3 . 1 . . . . 2 2 . . 1 . . Operators 3 | . 1 . 1 . . . 1 . . . . . . . . . . . . . . . . . . Skim 29 | . 5 . 6 . . . 5 . 5 1 2 5 . . . . . . . . . . . . . Fabricators 1 | . . . . . . . . . . 1 . . . . . . . . . . . . . . . Recompile 1 | . . . . . . . . . . 1 . . . . . . . . . . . . . . . Repair Stations 3 | . . . . . . . 1 . . . . . . 1 . . . . 1 . . . . . . Mechanics 1 | . . . . . . . 1 . . . . . . . . . . . . . . . . . . Patch 2 | . . . . . . . . . . . . . . 1 . . . . 1 . . . . . . Recycling Units 3 | . 2 . 1 . . . . . . . . . . . . . . . . . . . . . . Tunnel 3 | . 2 . 1 . . . . . . . . . . . . . . . . . . . . . . Scanalyzers . | . . . . . . . . . . . . . . . . . . . . . . . . . . Garrison Access . | . . . . . . . . . . . . . . . . . . . . . . . . . . Data Cores Recovered . | . . . . . . . . . . . . . . . . . . . . . . . . . . Used . | . . . . . . . . . . . . . . . . . . . . . . . . . . Hacking Detections 105 | . 9 . 8 1 . . 10 4 12 12 9 6 . 5 . . . . 13 8 1 . 5 1 1 Full Trace Events 11 | . . . 1 . . . . . 1 2 1 . . 2 . . . . 1 1 . . 1 1 . Feedback Events 1 | . . . . . . . . . . 1 . . . . . . . . . . . . . . . Corruption 1 | . . . . . . . . . . 1 . . . . . . . . . . . . . . . Feedback Blocked . | . . . . . . . . . . . . . . . . . . . . . . . . . . Robot Schematics Acquired . | . . . . . . . . . . . . . . . . . . . . . . . . . . Robots Built . | . . . . . . . . . . . . . . . . . . . . . . . . . . Authchips . | . . . . . . . . . . . . . . . . . . . . . . . . . . Time . | . . . . . . . . . . . . . . . . . . . . . . . . . . Total Robot Build Rating . | . . . . . . . . . . . . . . . . . . . . . . . . . . Part Schematics Acquired 11 | . . . . . . . 1 . 4 2 1 1 . 2 . . . . . . . . . . . Parts Built 9 | . . . . . . . . . . 3 . . . 2 . . . . 4 . . . . . . Authchips 1 | . . . . . . . . . . 1 . . . . . . . . . . . . . . . Time 269 | . . . . . . . . . . 94 . . . 53 . . . . 122 . . . . . . Total Part Build Rating 57 | . . . . . . . . . . 15 . . . 12 . . . . 30 . . . . . . Part Studies Acquired 10 | . . . 3 . . . . . 5 1 . . . . . . . . 1 . . . . . . Parts Repaired 9 | . . . . . . . 2 . 1 . 3 . . . . . . . 3 . . . . . . Time 577 | . . . . . . . 95 . 32 . 150 . . . . . . . 300 . . . . . . Parts Recycled . | . . . . . . . . . . . . . . . . . . . . . . . . . . Recycled Matter . | . . . . . . . . . . . . . . . . . . . . . . . . . . Retrieved Matter . | . . . . . . . . . . . . . . . . . . . . . . . . . . Retrieved Components 23 | . 4 . 10 . . . . . 9 . . . . . . . . . . . . . . . . Parts Scanalyzed 4 | . . . . . . . . . 4 . . . . . . . . . . . . . . . . Part Schematics Acquired 4 | . . . . . . . . . 4 . . . . . . . . . . . . . . . . Parts Damaged 1 | . . . . . . . . . 1 . . . . . . . . . . . . . . . . Bothacking | -11 -10 -10 -9 -9 -9 -8 -8 -8 -8 -7 -7 -7 -7 -5 -5 -5 -5 -4 -4 -4 -4 -4 -4 -3 -3 ------------ Run | Yrd Mat Min Mat Min Exi Min Mat Gar Mat Fac Sto Rec Scr Fac Upp Upp War Pro Fac Ext Cet Arc Hub Res Arm Used RIF Installer . | . . . . . . . . . . . . . . . . . . . . . . . . . . Robots Hacked 16 | . . . . . . . . . . . . . 16 . . . . . . . . . . . . Non-combat 1 | . . . . . . . . . . . . . 1 . . . . . . . . . . . . Combat 15 | . . . . . . . . . . . . . 15 . . . . . . . . . . . . Robot Hacks Applied 16 | . . . . . . . . . . . . . 16 . . . . . . . . . . . . parse_system 16 | . . . . . . . . . . . . . 16 . . . . . . . . . . . . Relay Couplers Released 1 | . . . . . . . . . . . . . . . . . . . 1 . . . . . . Machine Destruction 1 | . . . . . . . . . . . . . . . . . . . 1 . . . . . . Fabnet Peak Effective % . | . . . . . . . . . . . . . . . . . . . . . . . . . . Robots Rewired 24 | . . . . . . . . . . 1 . . . . . . . . . 19 . . . . 4 Allies Hacked 1 | . . . . . . . . . . . . . . . . . . . . . . . . . 1 Hacks Repelled . | . . . . . . . . . . . . . . . . . . . . . . . . . . Allies | -11 -10 -10 -9 -9 -9 -8 -8 -8 -8 -7 -7 -7 -7 -5 -5 -5 -5 -4 -4 -4 -4 -4 -4 -3 -3 -------- Run | Yrd Mat Min Mat Min Exi Min Mat Gar Mat Fac Sto Rec Scr Fac Upp Upp War Pro Fac Ext Cet Arc Hub Res Arm Total Allies 41 | . 1 1 . 3 . . 1 . . 1 . . . . . . . . . 25 5 . . . 4 Largest Group 15 | . 1 2 . 3 3 3 1 . . 1 . . . . . . . . . 11 15 15 . . 4 Highest-Rated Group 955 | . 10 41 . 40 40 40 10 . . 16 . . . . . . . . . 541 955 948 . . 192 Highest-Rated Ally 159 | . 10 31 . 16 16 16 10 . . 16 . . . . . . . . . 159 159 143 . . 48 Total Orders 18 | . 6 . . . . . . . . 3 . . . . . . . . 9 . . . . . . STAY 4 | . 3 . . . . . . . . . . . . . . . . . 1 . . . . . . ROAM 4 | . . . . . . . . . . 2 . . . . . . . . 2 . . . . . . FOLLOW 4 | . 3 . . . . . . . . . . . . . . . . . 1 . . . . . . EXPLORE 1 | . . . . . . . . . . . . . . . . . . . 1 . . . . . . RETURN 5 | . . . . . . . . . . 1 . . . . . . . . 4 . . . . . . Ally Attacks 237 | . . . . . . 29 . . . 1 . . . . . . . . . 106 37 57 . . 7 Total Damage 7452 | . . . . . . 355 . . . 17 . . . . . . . . . 3185 1458 2181 . . 256 Kills 36 | . . . . . . 4 . . . . . . . . . . . . . 11 8 11 . . 2 Allies Corrupted . | . . . . . . . . . . . . . . . . . . . . . . . . . . Allies Melted 2 | . . . . . . . . . . . . . 1 . . . . . . . . 1 . . . Intel | -11 -10 -10 -9 -9 -9 -8 -8 -8 -8 -7 -7 -7 -7 -5 -5 -5 -5 -4 -4 -4 -4 -4 -4 -3 -3 ------- Run | Yrd Mat Min Mat Min Exi Min Mat Gar Mat Fac Sto Rec Scr Fac Upp Upp War Pro Fac Ext Cet Arc Hub Res Arm Active Infowar (turns) 5322 | 1 1123 22 . . . . 96 . . 855 377 269 . 783 84 . . 1 602 . . . 164 412 533 Sensors 3827 | . . . . . . . 96 . . 855 377 269 . 780 84 . . . 569 . . . 126 412 259 Terrain 1113 | . . . . . . . . . . . . . . 138 . . . . 317 . . . 105 108 445 Traps 1 | . . . . . . . . . . . . . . . . . . 1 . . . . . . . Seismic 1146 | 1 1123 22 . . . . . . . . . . . . . . . . . . . . . . . Robot Analysis Total 9 | . 3 . . 1 . . . . 1 . 1 1 . . . . . . 1 1 . . . . . Derelict Logs Recovered 4 | . . 3 . 1 . . . . . . . . . . . . . . . . . . . . . Drone Launches 9 | . . . . . . . . . . 2 . . . . . . . . 7 . . . . . . Drone Recoveries 4 | . . . . . . . . . . . . . . . . . . . 4 . . . . . . Exploration | -11 -10 -10 -9 -9 -9 -8 -8 -8 -8 -7 -7 -7 -7 -5 -5 -5 -5 -4 -4 -4 -4 -4 -4 -3 -3 ------------- Run | Yrd Mat Min Mat Min Exi Min Mat Gar Mat Fac Sto Rec Scr Fac Upp Upp War Pro Fac Ext Cet Arc Hub Res Arm Turns Passed 26280 | 60 1557 1563 2070 796 232 911 1406 517 2509 1181 1175 938 2000 1004 368 235 1504 192 1759 2481 449 83 307 413 570 Spaces Moved 17156 | 13 956 889 1193 656 195 571 943 337 1499 871 729 597 1996 603 297 205 1222 172 902 1105 176 64 189 223 553 Core 14 | . . . . . . . . . . . . . . . . . . . . . . . . . 14 Treads . | . . . . . . . . . . . . . . . . . . . . . . . . . . Legs 16839 | 13 956 889 1193 656 195 571 943 337 1499 871 729 597 1996 603 297 205 1222 172 902 1105 176 64 189 223 236 Wheels . | . . . . . . . . . . . . . . . . . . . . . . . . . . Hover . | . . . . . . . . . . . . . . . . . . . . . . . . . . Flight 303 | . . . . . . . . . . . . . . . . . . . . . . . . . 303 Fastest Speed 32 | 120 120 120 105 105 105 105 105 112 97 97 97 97 97 93 113 113 103 105 102 112 116 116 116 120 32 Average Speed 111 | 120 120 157 121 105 115 146 109 112 106 106 107 97 97 108 113 113 110 105 109 116 116 116 116 120 72 Slowest Speed 190 | 120 120 190 190 105 175 175 175 112 120 172 176 97 97 114 113 113 180 105 176 120 116 116 120 183 190 Overloaded Moves . | . . . . . . . . . . . . . . . . . . . . . . . . . . Propulsion Burnouts . | . . . . . . . . . . . . . . . . . . . . . . . . . . Robots Hopped 9 | . . . . . . . . . . . . . . . . . . . . . . . . . 9 Potential Cave-ins . | . . . . . . . . . . . . . . . . . . . . . . . . . . Cave-ins Triggered . | . . . . . . . . . . . . . . . . . . . . . . . . . . Exploration Rate (%) 61 | 2 98 97 78 100 51 91 77 52 92 24 80 98 95 19 53 43 85 42 27 84 67 72 26 6 37 Regions Visited 25 Branch Regions 16 Pre-discovered Areas 21 | . 2 . 3 . 1 . 1 . 5 . . 3 6 . . . . . . . . . . . . Known Exits Taken 20 | . 1 . 1 . . 1 1 . 1 1 1 1 1 1 1 1 1 1 1 1 1 1 1 1 . Unknown Exits Taken 4 | 1 . 1 . 1 1 . . . . . . . . . . . . . . . . . . . . Scrap Searched 9 | . . 1 . 1 . 1 . . . . . . 3 . 2 . . 1 . . . . . . . Spaces Dug 175 | . 2 . 12 28 . 24 . . 8 8 9 . . 13 . 1 . 3 56 . . . 6 2 3 Terrain Destroyed 544 | . 2 . 12 31 . 112 6 1 13 8 9 . 5 29 2 1 23 3 228 34 3 . 9 4 9 Melee 55 | . 2 . . . . . . . 5 8 9 . . 13 . 1 . . 8 . . . 4 2 3 Projectile 150 | . . . . . . . 1 1 . . . . 1 16 2 . 23 3 55 34 3 . 5 1 5 AOE 336 | . . . 12 31 . 112 5 . 8 . . . 4 . . . . . 164 . . . . . . Terrain Rammed . | . . . . . . . . . . . . . . . . . . . . . . . . . . Walls Destroyed . | . . . . . . . . . . . . . . . . . . . . . . . . . . Machines Disabled . | . . . . . . . . . . . . . . . . . . . . . . . . . . Actions | -11 -10 -10 -9 -9 -9 -8 -8 -8 -8 -7 -7 -7 -7 -5 -5 -5 -5 -4 -4 -4 -4 -4 -4 -3 -3 --------- Run | Yrd Mat Min Mat Min Exi Min Mat Gar Mat Fac Sto Rec Scr Fac Upp Upp War Pro Fac Ext Cet Arc Hub Res Arm Total 22618 | 30 1234 976 1656 726 206 617 1234 429 2222 1083 1026 937 2054 838 322 206 1352 180 1501 2105 390 66 230 332 666 Wait 3279 | 2 156 23 286 31 . 10 179 52 451 119 157 309 1 115 1 . 36 . 404 696 178 . 3 56 14 Move 17115 | 12 955 888 1192 655 194 570 943 334 1498 870 728 596 1995 602 296 204 1221 171 901 1104 175 63 188 222 538 Hop 6 | . . . . . . . . . . . . . . . . . . . . . . . . . 6 Pick Up 157 | . 12 6 9 3 5 1 12 1 21 11 6 2 5 9 4 . 11 . 19 9 2 . 1 6 2 Fast Attach 155 | 1 1 1 7 1 . . 13 . 25 . 9 . 8 9 2 . 16 3 14 18 6 . 1 4 16 Attach 85 | . 1 . 2 2 . 4 4 1 8 3 2 3 3 8 1 . 2 . 18 9 . . 2 6 6 Detach 18 | . 1 . . 1 . 2 1 . 1 . 1 1 1 1 . . 1 . 5 . . . . 1 1 Swap 268 | . 15 9 24 5 1 4 9 5 25 23 29 5 3 12 5 1 13 . 18 36 5 1 7 11 2 Drop 370 | . 17 7 38 5 6 . 20 5 49 15 20 2 14 11 8 . 37 3 20 45 10 . 3 6 29 Fire 881 | 15 70 42 97 23 . 25 47 31 131 26 56 13 8 39 5 . 14 3 89 91 14 . 6 18 18 Melee 136 | . 6 . . . . . . . 8 15 18 . 16 32 . 1 1 . 11 . . 2 14 2 10 Ram . | . . . . . . . . . . . . . . . . . . . . . . . . . . Kick 28 | . . . 1 . . 1 6 . 5 . . 6 . . . . . . 2 1 . . 5 . 1 Crush . | . . . . . . . . . . . . . . . . . . . . . . . . . . Escape Stasis . | . . . . . . . . . . . . . . . . . . . . . . . . . . Rewire 120 | . . . . . . . . . . 1 . . . . . . . . . 96 . . . . 23 Trap . | . . . . . . . . . . . . . . . . . . . . . . . . . . Miscellaneous . | . . . . . . . . . . . . . . . . . . . . . . . . . . Route ------- -11/Scrapyard -10/Materials (discovered 5 exits: *Mat x3 / *Min / Sub) -10/Mines (discovered 2 exits: *Mat x2) -9/Materials (discovered 5 exits: *Mat x3 / *Min x2) -9/Mines (discovered 4 exits: *Mat x2 / *Exi / [*Zio]) -9/Exiles (discovered 2 exits: [*Min x2]) -8/Mines (discovered 2 exits: *Mat x2) -8/Materials (discovered 4 exits: *Fac x3 / Gar) -8/Garrison (discovered 4 exits: *Mat x4) -8/Materials (discovered 3 exits: *Fac x3) -7/Factory (discovered 2 exits: *Sto / Low) -7/Storage (discovered 2 exits: *Fac / *Rec) -7/Recycling (discovered 2 exits: *Fac / *Scr) -7/Scraptown (discovered 2 exits: *Fac x2) -5/Factory (discovered 5 exits: *Fac x3 / *Upp x2) -5/Upper Caves -5/Upper Caves (discovered 2 exits: Fac / *War) -5/Warlord -4/Proximity Caves -4/Factory (discovered 8 exits: Res x4 / Upp x2 / *Ext x2) -4/Extension (discovered 2 exits: *Res / *Cet) -4/Cetus (discovered 2 exits: *Res / *Arc) -4/Archives -4/Hub_04(d) -3/Research (discovered 4 exits: Res x3 / *Arm) -3/Armory History --------- Turn | Location | Event 29 | -11/Scrapyard | Discovered new exit (range 3) 61 | -11/Scrapyard | Entered Materials 305 | -10/Materials | Build established: Mutant 435 | -10/Materials | Discovered new exit (range 15) 630 | -10/Materials | Identified exit to Mines 800 | -10/Materials | Discovered new exit (range 15) 1074 | -10/Materials | Discovered new exit (range 15) 1195 | -10/Materials | Identified exit to Subcaves 1282 | -10/Materials | Learned location of 1 exit from Storage 1311 | -10/Materials | Learned Storage stockpile data 1343 | -10/Materials | Learned location of 1 exit from Recycling 1344 | -10/Materials | Loaded intel: 19 non-interactive machine locations 1354 | -10/Materials | Learned 2 Mines zone layouts 1376 | -10/Materials | Learned 2 Storage zone layouts 1408 | -10/Materials | Learned 4 Recycling zone layouts 1452 | -10/Materials | Learned Storage emergency access door positions 1564 | -10/Materials | Core integrity fell below 50% 1618 | -10/Materials | Entered Mines 1618 | -10/Mines | Accompanied by 1 ally 1619 | -10/Mines | Assembled infested the area 1624 | -10/Mines | Assisted by a Guerilla fighting off Assembled 1627 | -10/Mines | Discovered new exit (range 15) 1727 | -10/Mines | Learned Materials garrison access intel 1751 | -10/Mines | Learned Materials garrison access intel 2026 | -10/Mines | Found a damaged Exp. Sensor Array with a note attached 2029 | -10/Mines | Found Prototype Device 2275 | -10/Mines | Received a Mining Laser from a helpful Derelict 2302 | -10/Mines | Learned Materials trap positions 2325 | -10/Mines | Discovered new exit (range 5) 2431 | -10/Mines | Found DCF Scrap (14 items) 3072 | -10/Mines | Joined a pair of Derelicts in attacking an 0b10 outpost 3181 | -10/Mines | Entered Materials 3181 | -9/Materials | Evolved 2 slots: Propulsion x1, Weapon x1 3182 | -9/Materials | Loaded intel: 19 trap records 3576 | -9/Materials | Build established: Tank 3588 | -9/Materials | Discovered new exit (range 9) 3963 | -9/Materials | Build established: Scavenger-Tank 4115 | -9/Materials | Discovered new exit (range 16) 4283 | -9/Materials | Build established: Tank 4626 | -9/Materials | Discovered new exit (range 4) 4716 | -9/Materials | Learned location of 1 exit from Recycling 4744 | -9/Materials | Build established: Scavenger-Tank 4773 | -9/Materials | Identified exit to Materials 4773 | -9/Materials | Identified exit to Mines 4997 | -9/Materials | Learned location of Storage (-7) 5078 | -9/Materials | Learned Storage trap positions 5085 | -9/Materials | Learned location of Zion (-7) 5126 | -9/Materials | Learned location of 3 exits from Materials 5181 | -9/Materials | First assault squad dispatched 5251 | -9/Materials | Entered Mines 5252 | -9/Mines | A Derelict revealed a hidden shortcut to a safe place 5256 | -9/Mines | Discovered exit to Materials (range 4) 5450 | -9/Mines | Deemed a non-threat by the Exiles lab entrance 5450 | -9/Mines | Discovered new exit (range 5) 5566 | -9/Mines | Build established: Tank 5653 | -9/Mines | Central database locked down 5737 | -9/Mines | Discovered exit to Materials (range 12) 5866 | -9/Mines | Build established: Scavenger-Tank 5899 | -9/Mines | Assisted by bots powering up and referring to "LRC-V3" 5900 | -9/Mines | Learned Materials emergency access door positions 5970 | -9/Mines | Found the Drone Emporium 5975 | -9/Mines | Found Prototype Device 5975 | -9/Mines | Identified Sensor Drone Bay 6047 | -9/Mines | Entered Exiles 6047 | -9/Exiles | Accompanied by 3 allies 6080 | -9/Exiles | Discovered new exit (range 14) 6107 | -9/Exiles | Met 8R-AWN 6124 | -9/Exiles | Met EX-HEX 6165 | -9/Exiles | Met EX-DEC 6263 | -9/Exiles | Discovered new exit (range 10) 6268 | -9/Exiles | Build established: Tank 6279 | -9/Exiles | Entered Mines 6279 | -8/Mines | Accompanied by 3 allies 6573 | -8/Mines | Build established: Mutant 6680 | -8/Mines | Discovered exit to Materials (range 9) 7031 | -8/Mines | Discovered exit to Materials (range 16) 7190 | -8/Mines | Entered Materials 7190 | -8/Materials | Evolved 2 slots: Propulsion x1, Utility x1 7191 | -8/Materials | Identified exit to Factory 7193 | -8/Materials | Loaded intel: 1 garrison access location 7204 | -8/Materials | Identified Exp. Sensor Array 7639 | -8/Materials | Build established: Scavenger-Tank 8217 | -8/Materials | Learned Storage security intel 8254 | -8/Materials | Learned 4 Recycling zone layouts 8298 | -8/Materials | Repaired Gauss Rifle 8309 | -8/Materials | Learned location of 1 exit from Storage 8310 | -8/Materials | Learned location of Extension (-4) 8311 | -8/Materials | Learned 2 Lower Caves zone layouts 8315 | -8/Materials | Learned 8 Factory zone layouts 8331 | -8/Materials | Learned Factory emergency access door positions 8351 | -8/Materials | Repaired Cld. Ion Engine 8596 | -8/Materials | Identified exit to Garrison 8596 | -8/Materials | Entered Garrison 8624 | -8/Garrison | Discovered new exit (range 66) 8624 | -8/Garrison | Discovered new exit (range 77) 8624 | -8/Garrison | Discovered new exit (range 49) 8624 | -8/Garrison | Discovered new exit (range 86) 8680 | -8/Garrison | Triggered checkpoint 8933 | -8/Garrison | Learned Materials security intel 8968 | -8/Garrison | Attempted to access garrison exit controls, blocked by remote lockdown 9010 | -8/Garrison | Triggered checkpoint 9042 | -8/Garrison | Attempted to access garrison exit controls, blocked by remote lockdown 9068 | -8/Garrison | Triggered checkpoint 9113 | -8/Garrison | Entered Materials 9116 | -8/Materials | Loaded intel: 1 garrison access location 9301 | -8/Materials | Garrison activated, responded to threat 9455 | -8/Materials | Lost 3 parts (2n1w) 10009 | -8/Materials | Build established: Hacker-Gunner 10326 | -8/Materials | Core integrity fell below 50% 10611 | -8/Materials | Discovered exit to Factory (range 15) 10741 | -8/Materials | Build established: Tank 11035 | -8/Materials | Repaired Imp. Aluminum Leg+ 11307 | -8/Materials | Learned 2 Lower Caves zone layouts 11369 | -8/Materials | Learned location of Recycling (-7) 11388 | -8/Materials | Learned Storage garrison access intel 11389 | -8/Materials | Learned location of 1 exit from Lower Caves 11390 | -8/Materials | Learned Factory stockpile data 11410 | -8/Materials | Learned location of 1 exit from Lower Caves 11437 | -8/Materials | Learned location of Lower Caves (-6) 11622 | -8/Materials | Entered Factory 11622 | -7/Factory | Evolved 2 slots: Utility x2 11623 | -7/Factory | Identified exit to Storage 11623 | -7/Factory | Identified exit to Lower Caves 12005 | -7/Factory | Build established: Scientist-Mutant 12463 | -7/Factory | Fabricated Arm. Leg? 12547 | -7/Factory | Fabricated Imp. Hacking Suite (x1) 12803 | -7/Factory | Entered Storage 12804 | -7/Storage | Identified exit to Recycling 12804 | -7/Storage | Identified exit to Factory 12806 | -7/Storage | Loaded intel: 15 trap records 12809 | -7/Storage | Loaded intel: 1 garrison access location 13588 | -7/Storage | Repaired Enh. Autogun? 13600 | -7/Storage | Repaired Enh. Autogun? 13661 | -7/Storage | Repaired Enh. Autogun 13974 | -7/Storage | Used back door to open Recycling access 13978 | -7/Storage | Entered Recycling 13979 | -7/Recycling | Identified exit to Scraptown 13979 | -7/Recycling | Identified exit to Factory 13994 | -7/Recycling | Scanned before Scraplab entrance 14009 | -7/Recycling | Entered Scraplab 14536 | -7/Recycling | Learned Hub_04(d) stockpile data 14616 | -7/Recycling | Build established: Hacker-Tank 14656 | -7/Recycling | Learned location of 1 exit from Lower Caves 14704 | -7/Recycling | Learned location of Warlord (-5) 14764 | -7/Recycling | Learned location of Lower Caves (-7) 14844 | -7/Recycling | Learned Hub_04(d) trap positions 14916 | -7/Recycling | Entered Scraptown 15265 | -7/Scraptown | Heard Great Nut preacher, LISTEN AND RECITE! 15295 | -7/Scraptown | Visited The Evicted 15320 | -7/Scraptown | Build established: Hacker-Mutant 15332 | -7/Scraptown | Visited Assassins FH 15349 | -7/Scraptown | Visited Cyclists 15495 | -7/Scraptown | Visited IN-MT5's Study 15530 | -7/Scraptown | Visited Artisan Demo Area 15561 | -7/Scraptown | Visited CPS Storage 15585 | -7/Scraptown | Visited Cave Peace 15645 | -7/Scraptown | Discovered exit to Factory (range 7) 15745 | -7/Scraptown | Visited UFD Registry 15745 | -7/Scraptown | Registered with UFD as "Plasmasplitter" 15765 | -7/Scraptown | Visited Chapter 10 15802 | -7/Scraptown | Visited Sword Containment 15834 | -7/Scraptown | Visited Derelict Rescue Squad 15847 | -7/Scraptown | Found DRS Beacon 15892 | -7/Scraptown | Visited Supply Room 15916 | -7/Scraptown | Visited Junk Repository 15940 | -7/Scraptown | Visited Cartography Club 16010 | -7/Scraptown | Learned location of Armory (-3) 16010 | -7/Scraptown | Learned 20 Factory zone layouts 16010 | -7/Scraptown | Learned 24 Factory zone layouts 16010 | -7/Scraptown | Learned 8 Research zone layouts 16010 | -7/Scraptown | Learned 4 Mines zone layouts 16010 | -7/Scraptown | Learned 12 Lower Caves zone layouts 16010 | -7/Scraptown | Learned 16 Lower Caves zone layouts 16010 | -7/Scraptown | Learned 16 Upper Caves zone layouts 16010 | -7/Scraptown | Learned 24 Upper Caves zone layouts 16010 | -7/Scraptown | Learned 20 Proximity Caves zone layouts 16010 | -7/Scraptown | Learned 24 Proximity Caves zone layouts 16010 | -7/Scraptown | Learned Factory emergency access door positions 16010 | -7/Scraptown | Learned location of 1 exit from Factory 16010 | -7/Scraptown | Learned location of 2 exits from Lower Caves 16196 | -7/Scraptown | Visited Observation Area 16237 | -7/Scraptown | Visited Science Guys 16277 | -7/Scraptown | Visited Curators Association 16580 | -7/Scraptown | Entered Cyclist Reading Room 16704 | -7/Scraptown | Found Prototype Slashing Weapon 16704 | -7/Scraptown | Identified Companion Sword 16787 | -7/Scraptown | Met Optimus 16787 | -7/Scraptown | Accepted into 0bPrime 16855 | -7/Scraptown | Civil war broke out across Scraptown 16855 | -7/Scraptown | Found Surveybot 17 Chip 16905 | -7/Scraptown | Lost 7 allies 16916 | -7/Scraptown | Entered Factory 16916 | -5/Factory | Evolved 4 slots: Propulsion x1, Utility x2, Weapon x1 16917 | -5/Factory | Identified exit to Factory 16918 | -5/Factory | Identified exit to Upper Caves 17514 | -5/Factory | Fabricated KE Penetrator (x2) 17577 | -5/Factory | System corruption reached 10% 17885 | -5/Factory | Garrison activated, responded to threat 17913 | -5/Factory | Cargo convoy interrupted 17920 | -5/Factory | Entered Upper Caves 17921 | -5/Upper Caves | Identified exit to Upper Caves 18033 | -5/Upper Caves | Learned Factory trap positions 18033 | -5/Upper Caves | Learned Research emergency access door positions 18033 | -5/Upper Caves | Learned Research garrison access intel 18106 | -5/Upper Caves | Lost 3 allies 18279 | -5/Upper Caves | Attracted the attention of an 0b10 checkpoint 18288 | -5/Upper Caves | Entered another Upper Caves area 18289 | -5/Upper Caves | Identified exit to Warlord 18476 | -5/Upper Caves | Build established: Derelict-Gunner 18523 | -5/Upper Caves | Entered Warlord 18576 | -5/Warlord | System corruption cleaned by Quarantine Array 18652 | -5/Warlord | Discovered new exit (range 9) 19069 | -5/Warlord | Warlord's base attacked by MAIN.C 19107 | -5/Warlord | Rebuked by Warlord 19230 | -5/Warlord | Found Prototype Launcher 19230 | -5/Warlord | Identified Vortex Catalyst Activator 19234 | -5/Warlord | Found Prototype Piercing Weapon 19234 | -5/Warlord | Identified Vortex Lance 19271 | -5/Warlord | Build established: Gunner 19382 | -5/Warlord | Found Vortex Lance 19419 | -5/Warlord | Warlord forces counterattacked 19459 | -5/Warlord | Found Prototype Processor 19459 | -5/Warlord | Identified Exp. Targeting Computer 19467 | -5/Warlord | Found Prototype Hackware 19472 | -5/Warlord | Found Prototype Device 19472 | -5/Warlord | Identified Exp. Focal Shield 19744 | -5/Warlord | Warlord base infiltrated, sounded retreat 19745 | -5/Warlord | Enhanced Grunt warped into view 19745 | -5/Warlord | Enhanced Grunt warped into view 19745 | -5/Warlord | Enhanced Grunt warped into view 19745 | -5/Warlord | Enhanced Demolisher warped into view 19745 | -5/Warlord | Enhanced Demolisher warped into view 19745 | -5/Warlord | Enhanced Demolisher warped into view 19797 | -5/Warlord | Lost 4 allies 19830 | -5/Warlord | Found Prototype Reactor 19855 | -5/Warlord | Spotted Striker 19901 | -5/Warlord | Spotted Executioner 19917 | -5/Warlord | Spotted Striker 19931 | -5/Warlord | Spotted Executioner 19939 | -5/Warlord | Destroyed Executioner 19939 | -5/Warlord | Spotted Striker 19987 | -5/Warlord | Spotted Striker 19996 | -5/Warlord | Spotted Executioner 20000 | -5/Warlord | Attacked by Warlord forces 20026 | -5/Warlord | Identified exit to Proximity Caves 20027 | -5/Warlord | Entered Proximity Caves 20042 | -4/Proximity Caves | Lost 11 allies 20094 | -4/Proximity Caves | Spotter reported a threat 20110 | -4/Proximity Caves | Spotter reported a threat 20219 | -4/Proximity Caves | Entered Factory 20219 | -4/Factory | Evolved 2 slots: Power x1, Utility x1 20220 | -4/Factory | Identified exit to Research 20220 | -4/Factory | Identified Vortex Chain Reactor 20221 | -4/Factory | Loaded intel: 94 trap records 20227 | -4/Factory | Identified Ghost Barrier 20337 | -4/Factory | Repaired Enh. Biometal Leg 20400 | -4/Factory | Repaired Imp. Kinecellerator 20469 | -4/Factory | Search patrols dispatched 20516 | -4/Factory | Build established: Hacker-Gunner 20689 | -4/Factory | Fabricated Hyp. Railgun (x2) 21110 | -4/Factory | Fabricated Myomer Leg? 21121 | -4/Factory | Identified exit to Upper Caves 21121 | -4/Factory | Identified exit to Extension 21130 | -4/Factory | Build established: Hacker-Skirmisher 21219 | -4/Factory | First assault squad dispatched 21241 | -4/Factory | Lost 3 parts (1n1u1w) 21545 | -4/Factory | Lost 3 parts (2n1w) 21671 | -4/Factory | Garrison activated, responded to threat 21852 | -4/Factory | Repaired Broken Enh. Biometal Leg 21923 | -4/Factory | Unchained authorized (6S-H0T) 21978 | -4/Factory | Entered Extension 22000 | -4/Extension | Build established: Scavenger-Gunner 22208 | -4/Extension | Disrupted transfer network 23128 | -4/Extension | Rescued a captive Derelict 23250 | -4/Extension | Rescued a captive Derelict 23251 | -4/Extension | Rescued a captive Derelict 23290 | -4/Extension | Rescued a captive Derelict 23292 | -4/Extension | Rescued a captive Derelict 23543 | -4/Extension | Spotted B-86 Titan 23575 | -4/Extension | Allies destroyed B-86 Titan 23583 | -4/Extension | Spotted B-86 Titan 23617 | -4/Extension | Destroyed B-86 Titan 23639 | -4/Extension | Lost 11 allies 23727 | -4/Extension | Lost 3 parts (1n1u1w) 24026 | -4/Extension | Core integrity fell below 50% 24050 | -4/Extension | Rescued A7 24279 | -4/Extension | System corruption reached 10% 24402 | -4/Extension | Discovered exit to Research (range 10) 24403 | -4/Extension | Discovered new exit (range 6) 24409 | -4/Extension | Identified exit to Cetus 24459 | -4/Extension | Entered Cetus 24459 | -4/Cetus | Accompanied by 11 allies (A7) 24464 | -4/Cetus | Acquired a Cetus Manufacturing Module code from A7 24473 | -4/Cetus | Spotted Cetus Guard 24473 | -4/Cetus | Spotted Cetus Guard 24476 | -4/Cetus | Allies destroyed Cetus Guard 24477 | -4/Cetus | Spotted Cetus Guard 24486 | -4/Cetus | Allies destroyed Cetus Guard 24486 | -4/Cetus | Spotted Cetus Guard 24488 | -4/Cetus | Allies destroyed Cetus Guard 24501 | -4/Cetus | Destroyed Cetus Guard 24584 | -4/Cetus | Started Cetus Manufacturing Module 24592 | -4/Cetus | Escorted A7 to Cetus Mainframe 24609 | -4/Cetus | Manufactured an Enhanced Grunt 24634 | -4/Cetus | Manufactured an Enhanced Grunt 24659 | -4/Cetus | Manufactured an Enhanced Grunt 24684 | -4/Cetus | Manufactured an Enhanced Grunt 24709 | -4/Cetus | Manufactured an Enhanced Grunt 24737 | -4/Cetus | Discovered new exit (range 16) 24770 | -4/Cetus | Spotted Cetus Guard 24770 | -4/Cetus | Spotted Cetus Guard 24771 | -4/Cetus | Spotted Cetus Guard 24777 | -4/Cetus | Allies destroyed Cetus Guard 24781 | -4/Cetus | Allies destroyed Cetus Guard 24789 | -4/Cetus | Allies destroyed Cetus Guard 24797 | -4/Cetus | Discovered exit to Research (range 16) 24803 | -4/Cetus | Met Revision 17 24855 | -4/Cetus | Identified exit to Archives 24908 | -4/Cetus | Entered Archives 24908 | -4/Archives | Accompanied by 15 allies (A7) 24913 | -4/Archives | Received a hacking code to weaken MAIN.C 24921 | -4/Archives | Met Zhirov 24927 | -4/Archives | Reinforcements dispatched to Archives 24934 | -4/Archives | Unable to access archive contents 24951 | -4/Archives | Unable to access archive contents 24964 | -4/Archives | Read partially decrypted archive contents 24972 | -4/Archives | Reinforcements dispatched to Archives 24974 | -4/Archives | Zhirov warped through subspace 24974 | -4/Archives | Discovered new exit (range 16) 24990 | -4/Archives | Identified exit to Hub_04(d) 24991 | -4/Archives | Entered Hub_04(d) 24992 | -4/Hub_04(d) | Loaded intel: 20 trap records 25004 | -4/Hub_04(d) | Lost 6 allies 25210 | -4/Hub_04(d) | System corruption reached 30% 25264 | -4/Hub_04(d) | Discovered exit to Research (range 13) 25298 | -4/Hub_04(d) | Entered Research 25298 | -3/Research | Evolved 2 slots: Utility x2 25299 | -3/Research | Identified exit to Armory 25302 | -3/Research | Loaded intel: 4 garrison access locations 25326 | -3/Research | Lost 7 parts (2n2u3w) 25410 | -3/Research | Identified exit to Research 25437 | -3/Research | Garrison activated, responded to threat 25498 | -3/Research | Revision forces began assault on 0b10 25543 | -3/Research | Met up with Revision 17++ 25711 | -3/Research | Entered Armory 25718 | -3/Armory | Build established: Hacker-Gunner 26041 | -3/Armory | Lost 3 parts (1n1u1w) 26270 | -3/Armory | Core integrity fell below 50% 26278 | -3/Armory | Core integrity fell below 20% 26281 | -3/Armory | Destroyed by G-67 Veteran with Plasma Rifle Last Messages --------------- 26257_ Penetrated by Slug. 26257_ Transfer Shaft disabled. 26257_ Slug penetrates Wall. 26260_ Penetrated by Slug. 26260_ Slug penetrates Compression Vault. 26260_ Penetrated by Slug. 26260_ Slug penetrates Compression Vault. 26260_ Adv. Hacking Suite destroyed. 26261_ Compression Vault explodes. 26261_ S-43 Plague destroyed. 26261_ Penetrated by Slug. 26261_ Impulse Thruster Array destroyed. 26272_ System corrupted: Energy discharge (-22). 26272_ S-43 Plague destroyed. 26274_ Adv. System Shield destroyed. 26274_ S-43 Plague destroyed. 26275_ Acquired Xenon Bombardment Thruster. 26276_ Xenon Bombardment Thruster destroyed. 26277_ Acquired 36 matter. 26278_ Acquired Xenon Bombardment Thruster. Map ----- +----------------------------------------------------+ | ?????????????????????????????????????????????????? | | ?????????????????????????????????????????????????? | | ?????????????????????????????????????????????????? | | ?????????????????????????????????????????????????? | | ?????????????????????????????????????????????????? | | ?????????????????????????????????????????????????? | | ?????????????????????????????????????????????????? | | ?????????????????????????????????????????????????? | | ?????????????????????????????????????????????????? | | ?????????????????????????????????????????????????? | | ?????????????????????????????????????????????????? | | ?????????????????????????????????????????????????? | | ?????????????????????????????????????????????????? | | ?????????????????????????????????????????????????? | | ????????????????????????#########+#??????????????? | | ????????????????????????# #??????????????? | | ????????????????????????# #??????????????? | | ????????????????????????# #??????????????? | | ????????????????????????# #??######??????? | | ????????????????????????###### #? #?????? | | ?????????????????????????????# # """ #?????? | | ?????????????????????????????# # """ #???### | | ?????????????????????????????# + """ +??? | | ?????????????????????????????# # "" #???# | | ????????????????### #########g s # "F #???# | | ??????????????# @ gs s*# """ ##### | | ??????????????# gggs= # """ + | | ??????????? d ss #? ??# | | ??????????? sg####/##### | | ???????????#+###+#+##+######## hg | | ????????????????????????????#T ##########/# | | ????????????????????????????##""""#??????# | | ?????????????????????????????????????????# !! | | ?????????????????????????????????????????# !! =" | | ?????????????????????????????????????????# !! #%%" | | ?????????????????????????????????????????# !! +=[" | | ?????????????????????????????????????????# !! # | | ?????????????????????????????????????????# !! # | | ?????????????????????????????????????????# #"## | | ?????????????????????????????????????????# # | | ?????????????????????????????????????????###### !! | | ??????????????????????????????????????????????# !! | | ??????????????????????????????????????????????# | | ??????????????????????????????????????????????#### | | ?????????????????????????????????????????????????? | | ?????????????????????????????????????????????????? | | ?????????????????????????????????????????????????? | | ?????????????????????????????????????????????????? | | ?????????????????????????????????????????????????? | | ?????????????????????????????????????????????????? | +----------------------------------------------------+ Best States ------------- Heat Dissipation 77 Energy Generation 55 Energy Capacity 700 Matter Stores 300 Matter Capacity 500 Sight Range 16 Robot Scan Range 20 Terrain Scan Range 14 Terrain Scan Density 1210 Armor Coverage 600 Resistance: TH 20 Resistance: EM 15 Weapon Cycling 20 Evasion (%) 70 Targeting Accuracy 20 Kinecelleration 40 Offensive Hacking 36 Defensive Hacking 26 Authchip Count 1 Item Schematics ----------------- VSS Leg | -8/Materials | Hacked Hacking Suite | -8/Materials | Scanalyzed Enh. Autogun | -8/Materials | Scanalyzed Hrd. Medium Armor Plating | -8/Materials | Scanalyzed Exp. Sensor Array | -8/Materials | Scanalyzed Arm. Leg | -7/Factory | Hacked Imp. Hacking Suite | -7/Factory | Hacked Thunder Leg | -7/Storage | Hacked KE Penetrator | -7/Recycling | Hacked Myomer Leg | -5/Factory | Hacked Lyr. Heavy Armor Plating | -5/Factory | Hacked Robot Schematics ------------------ None Fabricated ------------ Arm. Leg | x2 | -7/Factory | Authchip Imp. Hacking Suite | x1 | -7/Factory KE Penetrator | x2 | -5/Factory Hyp. Railgun | x2 | -4/Factory | Preloaded Myomer Leg | x2 | -4/Factory Repaired ---------- Gauss Rifle | 38% | -8/Materials Cld. Ion Engine | 35% | -8/Materials Imp. Aluminum Leg | 36% | -8/Materials Enh. Autogun | 10% | -7/Storage Enh. Autogun | 10% | -7/Storage Enh. Autogun | 11% | -7/Storage Enh. Biometal Leg | 57% | -4/Factory Imp. Kinecellerator | 15% | -4/Factory Enh. Biometal Leg | 19% | -4/Factory | Broken Studied --------- Aluminum Leg | -9/Materials | Hacked Imp. Aluminum Leg | -9/Materials | Hacked Autogun | -9/Materials | Hacked Carbon-fiber Leg | -8/Materials | Hacked VSS Leg | -8/Materials | Hacked Grenade Launcher | -8/Materials | Hacked Scythe | -8/Materials | Hacked Titanium Leg | -8/Materials | Hacked Imp. Deuterium Engine | -7/Factory | Hacked Hyp. Railgun | -4/Factory | Hacked Alien Tech Used ----------------- None Achievements -------------- Bending The Rules Bob, First Of His Name Bumper Bots Construction Begets Destruction Dramatic Entrance Main Advantage Maybe Next Time I'll Detach My Launcher More Dakka Please My Bad Official Business Project G-00 Remodeling Revising The Future Revolutionary Research Significant Disruption Sprinter Suspicious Thread The Needle Around The Corner Challenges ------------ None Game ------ Seed CoolantBurstFrame Manual? 0 Play Time 06:39:14 Cumulative 30.1 hours Start 2026.02.02 @ 12:19:17 End 2026.02.02 @ 19:13:19 Sessions 1 Manual Loads 0 Difficulty Rogue Special Mode None Game No. 15 Rogue 14 Adventurer 0 Explorer 1 Win Type - Total 4 Types 3/0/0/1/0/0/0/0/0/0 Lore% 43 Gallery% 41 Achievement% 32 Wizard Run 0 Options --------- Layout 1 ASCII 0 Keyboard 0 Movement Mouse Keybinds 0 Fullscreen 1 Font 24/Smallcaps Map View 50x35 Zoom Use 0% Tactical HUD 1 Map Filters NONE Filters NONE Steam 1 RUN: 2f0ec52b-5d04-45ae-9880-5753947936c1